[Event "45th FIDE Womens Olympiad 2024"]
[Site "Budapest"]
[Date "2024.09.13"]
[Round "3.7"]
[White "Kawuma Patricia"]
[Black "Tchouateu Tankeu Stephanie"]
[Result "1-0"]
[ECO "C45"]
[WhiteElo "1839"]
[BlackElo "1565"]
[Annotator "NA RC"]
[PlyCount "139"]
[EventDate "2024.09.05"]
[EventType "team-tourn"]
[EventCountry "HUN"]
[SourceTitle "playchess.com"]
[Source "ChessBase"]
[SourceQuality "1"]
[WhiteTeam "Uganda"]
[BlackTeam "Cameroon"]
[WhiteTeamCountry "UGA"]
[BlackTeamCountry "CAM"]
[TimeControl "40/5400+30:1800+30"]

1. e4 e5 2. Nf3 Nc6 3. d4 exd4 4. Nxd4 Nf6 5. Nc3 Bc5 6. Be3 Bxd4 7. Bxd4 d6 8. Bb5 Bd7 9. Bxf6 Qxf6 10. Nd5 Qd8 11. O-O O-O 12. f4 a6 13. Bd3 f6 14. f5 Ne7 15. Nf4 c6 16. Kh1 d5 17. exd5 Nxf5 18. Qh5 Qe8 19. Bxf5 Qxh5 20. Nxh5 Bxf5 21. Rxf5 g6 22. Nxf6+ Kg7 23. Rff1 Rxf6 24. Rxf6 Kxf6 25. dxc6 bxc6 26. Rd1 Re8 27. Kg1 Re6 28. Kf2 Kf5 29. Rd3 Kf6 30. Kf3 Kf5 31. Ra3 c5 32. Ra5 Re5 33. Rxa6 Kg5 34. Rc6 Rf5+ 35. Kg3 h5 36. h4+ Kh6 37. a4 Re5 38. Kh3 Re3+ 39. g3 Re1 40. Rxc5 Rh1+ 41. Kg2 Rb1 42. b3 Re1 43. b4 Re4 44. c3 Re2+ 45. Kh3 Re1 46. a5 Re8 47. Rc7 Ra8 48. c4 Ra6 49. c5 g5 50. hxg5+ Kxg5 51. Rb7 Re6 52. b5 Re3 53. Kg2 Kg4 54. Rg7+ Kf5 55. a6 Ra3 56. a7 Kf6 57. Rc7 Kf5 58. b6 Kg4 59. Rg7+ Kf5 60. Rg8 Ra2+ 61. Kh3 Ke5 62. a8=Q Rxa8 63. Rxa8 Kd5 64. b7 Kxc5 65. b8=Q Kd4 66. Qf4+ Kd5 67. Ra5+ Kc6 68. Rxh5 Kd7 69. Rh6 Ke8 70. Rh7 1-0

[Event "45th FIDE Womens Olympiad 2024"]
[Site "Budapest"]
[Date "2024.09.13"]
[Round "3.8"]
[White "Malikova, Marjona"]
[Black "Papp, Petra"]
[Result "1/2-1/2"]
[ECO "E62"]
[WhiteElo "2083"]
[BlackElo "2259"]
[Annotator "RC"]
[PlyCount "60"]
[EventDate "2024.09.05"]
[EventType "team-tourn"]
[EventCountry "HUN"]
[SourceTitle "playchess.com"]
[Source "ChessBase"]
[SourceQuality "1"]
[WhiteTeam "Uzbekistan"]
[BlackTeam "Hungary"]
[WhiteTeamCountry "UZB"]
[BlackTeamCountry "HUN"]
[TimeControl "40/5400+30:1800+30"]

1. d4 {[%emt 0:00:05]} Nf6 {[%emt 0:00:09]} 2. Nf3 {[%emt 0:00:07]} g6 {[%emt 0:05:47]} 3. g3 {[%emt 0:00:29]} Bg7 {[%emt 0:00:50]} 4. Bg2 {[%emt 0:00:23]} O-O {[%emt 0:01:04]} 5. c4 {[%emt 0:00:07]} d6 {[%emt 0:01:02]} 6. O-O {[%emt 0:00:13]} Nc6 {[%emt 0:01:08]} 7. Nc3 {[%emt 0:00:10]} e5 {[%emt 0:00:23]} 8. d5 {[%emt 0:00:05]} Nb8 {[%emt 0:00:55]} 9. c5 {[%emt 0:00:12]} Ne8 {[%emt 0:12:04]} 10. cxd6 {[%emt 0:02:42]} cxd6 {[%emt 0:01:24]} 11. Nd2 {[%emt 0:00:30]} f5 {[%emt 0:01:34]} 12. a4 {[%emt 0:01:12]} Nd7 {[%emt 0:04:33]} 13. Nc4 {[%emt 0:02:25]} f4 {[%emt 0:01:24]} 14. Bd2 {[%emt 0:02:34]} Nb6 {[%emt 0:04:59]} 15. Na3 {[%emt 0:00:51]} g5 {[%emt 0:07:32]} 16. a5 {[%emt 0:01:15]} Nd7 {[%emt 0:00:08]} 17. Nc4 {[%emt 0:00:44]} Ndf6 {[%emt 0:03:31]} 18. Nb5 {[%emt 0:07:46]} Rf7 {[%emt 0:03:08]} 19. e3 {[%emt 0:04:12]} Bg4 {[%emt 0:10:50]} 20. f3 {[%emt 0:02:28]} Bf5 {[%emt 0:00:09]} 21. e4 {[%emt 0:03:07]} Bc8 {[%emt 0:00:19]} 22. g4 {[%emt 0:03:40]} h5 {[%emt 0:01:11]} 23. h3 {[%emt 0:00:04]} Bf8 {[%emt 0:00:20]} 24. Bb4 {[%emt 0:01:04]} Rh7 {[%emt 0:01:27]} 25. Rf2 {[%emt 0:08:06]} hxg4 {[%emt 0:04:28]} 26. hxg4 {[%emt 0:00:28]} Qd7 {[%emt 0:03:24]} 27. Qa4 {[%emt 0:05:22]} Rh6 {[%emt 0:04:24]} 28. Rc2 {[%emt 0:04:51]} Nxg4 {[%emt 0:06:32]} 29. fxg4 {[%emt 0:01:21]} Qxg4 {[%emt 0:00:08]} 30. Nbxd6 {[%emt 0:01:53]} Nxd6 {[%emt 0:03:16]} 1/2-1/2

[Event "45th FIDE Womens Olympiad 2024"]
[Site "Budapest"]
[Date "2024.09.13"]
[Round "3.9"]
[White "Dzagnidze, Nana"]
[Black "Bulmaga, Irina"]
[Result "1-0"]
[ECO "A13"]
[WhiteElo "2508"]
[BlackElo "2406"]
[Annotator "RC"]
[PlyCount "113"]
[EventDate "2024.09.05"]
[EventType "team-tourn"]
[EventCountry "HUN"]
[SourceTitle "playchess.com"]
[Source "ChessBase"]
[SourceQuality "1"]
[WhiteTeam "Georgia"]
[BlackTeam "Romania"]
[WhiteTeamCountry "GEO"]
[BlackTeamCountry "ROU"]
[TimeControl "40/5400+30:1800+30"]

1. Nf3 {[%emt 0:00:05]} Nf6 {[%emt 0:00:10]} 2. c4 {[%emt 0:00:04]} e6 {[%emt 0:00:11]} 3. b3 {[%emt 0:00:14]} d5 {[%emt 0:00:19]} 4. Bb2 {[%emt 0:00:04]} b6 {[%emt 0:03:44]} 5. cxd5 {[%emt 0:02:06]} exd5 {[%emt 0:00:35]} 6. e3 {[%emt 0:04:33]} Bd6 {[%emt 0:06:24]} 7. Bb5+ {[%emt 0:06:01]} c6 {[%emt 0:00:49]} 8. Be2 {[%emt 0:00:05]} O-O {[%emt 0:01:52]} 9. O-O {[%emt 0:00:22]} Re8 {[%emt 0:04:11]} 10. Nc3 {[%emt 0:02:27]} Bb7 {[%emt 0:03:16]} 11. Rc1 {[%emt 0:07:36]} Nbd7 {[%emt 0:02:57]} 12. Qc2 {[%emt 0:06:35]} Rc8 {[%emt 0:05:41]} 13. Rfd1 {[%emt 0:01:46]} Ne5 {[%emt 0:20:05]} 14. d4 {[%emt 0:07:50]} Nxf3+ {[%emt 0:04:31]} 15. Bxf3 {[%emt 0:00:52]} Qe7 {[%emt 0:00:40]} 16. g3 {[%emt 0:18:23]} h5 {[%emt 0:08:34]} 17. Re1 {[%emt 0:01:03]} c5 {[%emt 0:04:49]} 18. dxc5 {[%emt 0:01:31]} bxc5 {[%emt 0:03:03]} 19. Red1 {[%emt 0:12:52]} d4 {[%emt 0:09:06]} 20. Bxb7 {[%emt 0:00:39]} Qxb7 {[%emt 0:00:11]} 21. exd4 {[%emt 0:00:13]} cxd4 {[%emt 0:00:25]} 22. Rxd4 {[%emt 0:00:01]} Be5 {[%emt 0:04:37]} 23. Rd3 {[%emt 0:02:36]} Ne4 {[%emt 0:09:37]} 24. Qd1 {[%emt 0:04:38]} Bxc3 {[%emt 0:06:09]} 25. Bxc3 {[%emt 0:00:09]} Nxc3 {[%emt 0:00:32]} 26. Rdxc3 {[%emt 0:00:57]} Rxc3 {[%emt 0:00:06]} 27. Rxc3 {[%emt 0:00:05]} g6 {[%emt 0:00:54]} 28. Rd3 {[%emt 0:02:16]} Qb4 {[%emt 0:00:30]} 29. Kg2 {[%emt 0:08:51]} Qa5 {[%emt 0:00:23]} 30. Qd2 {[%emt 0:00:53]} Qf5 {[%emt 0:00:31]} 31. Rd4 {[%emt 0:00:58]} Qe6 {[%emt 0:00:33]} 32. Qd3 {[%emt 0:00:59]} Kh7 {[%emt 0:00:13]} 33. Rd6 {[%emt 0:00:49]} Qe1 {[%emt 0:00:44]} 34. Qd4 {[%emt 0:00:28]} Kg8 {[%emt 0:00:36]} 35. Qd5 {[%emt 0:02:01]} Qe4+ {[%emt 0:00:28]} 36. Qxe4 {[%emt 0:00:32]} Rxe4 {[%emt 0:00:01]} 37. Ra6 {[%emt 0:02:19]} Re7 {[%emt 0:00:02]} 38. Kf3 {[%emt 0:00:34]} Kf8 {[%emt 0:00:10]} 39. h4 {[%emt 0:01:26]} Kg7 {[%emt 0:00:33]} 40. b4 {[%emt 0:00:14]} Rb7 {[%emt 0:00:16]} 41. a3 {[%emt 0:30:07]} Re7 {[%emt 0:30:37]} 42. b5 {[%emt 0:01:06]} Rb7 {[%emt 0:00:00]} 43. a4 {[%emt 0:00:00]} Re7 {[%emt 0:00:00]} 44. Kf4 {[%emt 0:00:00]} Kh7 {[%emt 0:00:00]} 45. Rc6 {[%emt 0:00:00]} Kg7 {[%emt 0:00:00]} 46. f3 {[%emt 0:00:00]} Kh7 {[%emt 0:00:00]} 47. a5 {[%emt 0:00:00]} Kg7 {[%emt 0:00:00]} 48. b6 {[%emt 0:00:00]} axb6 {[%emt 0:00:00]} 49. axb6 {[%emt 0:00:00]} Re1 {[%emt 0:00:00]} 50. b7 {[%emt 0:00:00]} Rb1 {[%emt 0:00:00]} 51. Rc7 {[%emt 0:00:00]} Kf6 {[%emt 0:00:00]} 52. Ke4 {[%emt 0:00:00]} Ke6 {[%emt 0:00:00]} 53. Kd4 {[%emt 0:00:00]} f6 {[%emt 0:00:00]} 54. Kc5 {[%emt 0:00:00]} Kf5 {[%emt 0:00:00]} 55. Kc6 {[%emt 0:00:00]} g5 {[%emt 0:00:00]} 56. Rc8 {[%emt 0:00:00]} gxh4 {[%emt 0:00:00]} 57. gxh4 {[%emt 0:00:00]} 1-0

[Event "45th FIDE Womens Olympiad 2024"]
[Site "Budapest"]
[Date "2024.09.13"]
[Round "3.9"]
[White "Nihaya, Ahmed"]
[Black "Mongeli, Sasha"]
[Result "0-1"]
[ECO "B12"]
[WhiteElo "1589"]
[BlackElo "1819"]
[Annotator "NA"]
[PlyCount "112"]
[EventDate "2024.09.05"]
[EventType "team-tourn"]
[EventCountry "HUN"]
[SourceTitle "playchess.com"]
[Source "ChessBase"]
[SourceQuality "1"]
[WhiteTeam "Maldives"]
[BlackTeam "Kenya"]
[WhiteTeamCountry "MDV"]
[BlackTeamCountry "KEN"]
[TimeControl "40/5400+30:1800+30"]

1. e4 c6 2. d4 d5 3. e5 Bf5 4. Nf3 e6 5. Be2 Nd7 6. O-O Bg6 7. c3 Ne7 8. Bg5 Qc7 9. b4 a5 10. bxa5 Rxa5 11. Nbd2 h6 12. Bf4 Nc8 13. Nb3 Ra3 14. Bc1 Ra7 15. Nh4 Bh7 16. f4 Be7 17. Nf3 Bf5 18. Bd3 g6 19. h3 Ncb6 20. Be2 h5 21. Nbd2 Na4 22. Qb3 Qa5 23. Bb2 Qb6 24. Bc1 Qa5 25. Bb2 O-O 26. Ng5 Nxb2 27. Qxb2 Qa3 28. Qb3 Rfa8 29. g4 hxg4 30. hxg4 Qxb3 31. Nxb3 Bc2 32. Nc1 Ba3 33. Nd3 Bxd3 34. Bxd3 Bb2 35. Rab1 Bxc3 36. Nf3 b5 37. Rfc1 b4 38. f5 gxf5 39. gxf5 Rxa2 40. fxe6 fxe6 41. Rc2 Rxc2 42. Bxc2 Kf8 43. Bg6 Ke7 44. Kf2 Ra2+ 45. Ke3 Rg2 46. Bh5 Nb6 47. Rg1 Nc4+ 48. Kd3 Nb2+ 49. Ke3 Bd2+ 50. Nxd2 Rxg1 51. Be2 Rc1 52. Kf4 Rc2 53. Ke3 Nc4+ 54. Bxc4 dxc4 55. Nb1 Rc1 56. Nd2 b3 0-1

[Event "45th FIDE Womens Olympiad 2024"]
[Site "Budapest"]
[Date "2024.09.13"]
[Round "3.10"]
[White "Sandu, Mihaela"]
[Black "Javakhishvili, Lela"]
[Result "1-0"]
[ECO "B08"]
[WhiteElo "2248"]
[BlackElo "2446"]
[Annotator "RC"]
[PlyCount "105"]
[EventDate "2024.09.05"]
[EventType "team-tourn"]
[EventCountry "HUN"]
[SourceTitle "playchess.com"]
[Source "ChessBase"]
[SourceQuality "1"]
[WhiteTeam "Romania"]
[BlackTeam "Georgia"]
[WhiteTeamCountry "ROU"]
[BlackTeamCountry "GEO"]
[TimeControl "40/5400+30:1800+30"]

1. e4 {[%emt 0:00:07]} d6 {[%emt 0:00:10]} 2. d4 {[%emt 0:00:07]} Nf6 {[%emt 0:00:08]} 3. Nc3 {[%emt 0:00:06]} g6 {[%emt 0:00:04]} 4. Nf3 {[%emt 0:00:07]} Bg7 {[%emt 0:00:08]} 5. Be2 {[%emt 0:00:05]} O-O {[%emt 0:00:17]} 6. O-O {[%emt 0:00:13]} a6 {[%emt 0:00:15]} 7. a4 {[%emt 0:00:19]} Nc6 {[%emt 0:00:30]} 8. d5 {[%emt 0:03:16]} Nb4 {[%emt 0:00:18]} 9. h3 {[%emt 0:15:10]} e6 {[%emt 0:02:34]} 10. dxe6 {[%emt 0:12:42]} Bxe6 {[%emt 0:00:29]} 11. Be3 {[%emt 0:03:25]} Re8 {[%emt 0:04:02]} 12. Ng5 {[%emt 0:07:50]} Bd7 {[%emt 0:08:43]} 13. Bc4 {[%emt 0:01:46]} d5 {[%emt 0:12:51]} 14. exd5 {[%emt 0:05:49]} h6 {[%emt 0:02:51]} 15. Nf3 {[%emt 0:00:30]} Bf5 {[%emt 0:03:56]} 16. Bb3 {[%emt 0:07:49]} Qd7 {[%emt 0:07:28]} 17. Bc5 {[%emt 0:09:12]} a5 {[%emt 0:01:45]} 18. Nd4 {[%emt 0:03:18]} Rad8 {[%emt 0:05:06]} 19. Qf3 {[%emt 0:00:57]} Ne4 {[%emt 0:29:39]} 20. Nxf5 {[%emt 0:05:10]} Nxc5 {[%emt 0:00:28]} 21. Nxg7 {[%emt 0:00:52]} Kxg7 {[%emt 0:00:07]} 22. Bc4 {[%emt 0:11:26]} Nxc2 {[%emt 0:00:31]} 23. Rad1 {[%emt 0:00:30]} Qf5 {[%emt 0:04:46]} 24. Qxf5 {[%emt 0:03:11]} gxf5 {[%emt 0:00:02]} 25. Nb5 {[%emt 0:01:37]} Rd7 {[%emt 0:04:35]} 26. Rc1 {[%emt 0:03:16]} Nb4 {[%emt 0:00:06]} 27. Nd4 {[%emt 0:00:09]} Ncd3 {[%emt 0:03:33]} 28. Rc3 {[%emt 0:03:32]} Nxb2 {[%emt 0:00:25]} 29. Nxf5+ {[%emt 0:01:32]} Kf6 {[%emt 0:03:30]} 30. Nxh6 {[%emt 0:00:39]} Nxc4 {[%emt 0:00:49]} 31. Rxc4 {[%emt 0:00:04]} Nxd5 {[%emt 0:00:21]} 32. Ng4+ {[%emt 0:00:45]} Kg7 {[%emt 0:00:24]} 33. Rd1 {[%emt 0:00:15]} c6 {[%emt 0:04:41]} 34. Rc5 {[%emt 0:00:22]} Ra8 {[%emt 0:00:17]} 35. Ne3 {[%emt 0:00:49]} Nb6 {[%emt 0:00:35]} 36. Ra1 {[%emt 0:00:22]} Kf8 {[%emt 0:00:38]} 37. Ra3 {[%emt 0:00:30]} Rd4 {[%emt 0:00:38]} 38. Rb3 {[%emt 0:00:49]} Rb4 {[%emt 0:00:23]} 39. Rd3 {[%emt 0:00:15]} Rxa4 {[%emt 0:01:16]} 40. Rh5 {[%emt 0:00:05]} Re8 {[%emt 0:00:35]} 41. Nf5 {[%emt 0:30:15]} Re1+ {[%emt 0:02:19]} 42. Kh2 {[%emt 0:00:00]} f6 {[%emt 0:00:06]} 43. Rd8+ {[%emt 0:00:00]} Kf7 {[%emt 0:00:04]} 44. g4 {[%emt 0:00:00]} Re8 {[%emt 0:02:32]} 45. Rh7+ {[%emt 0:00:00]} Kg8 {[%emt 0:00:02]} 46. Rg7+ {[%emt 0:00:00]} Kf8 {[%emt 0:00:04]} 47. Rd6 {[%emt 0:00:00]} Nd5 {[%emt 0:04:52]} 48. Rxb7 {[%emt 0:00:00]} Ra2 {[%emt 0:04:57]} 49. Kg3 {[%emt 0:00:00]} Rae2 {[%emt 0:02:01]} 50. Rxc6 {[%emt 0:00:00]} R2e5 {[%emt 0:01:34]} 51. Ra6 {[%emt 0:00:00]} Rc8 {[%emt 0:02:00]} 52. Raa7 {[%emt 0:00:39]} Re6 {[%emt 0:00:24]} 53. Rh7 {[%emt 0:01:04]} 1-0

[Event "45th FIDE Womens Olympiad 2024"]
[Site "Budapest"]
[Date "2024.09.13"]
[Round "3.10"]
[White "Ndirangu, Joyce Nyaruai"]
[Black "Aishath Iva Hassan"]
[Result "1-0"]
[ECO "B12"]
[WhiteElo "1782"]
[BlackElo "1422"]
[Annotator "NA"]
[PlyCount "47"]
[EventDate "2024.09.05"]
[EventType "team-tourn"]
[EventCountry "HUN"]
[SourceTitle "playchess.com"]
[Source "ChessBase"]
[SourceQuality "1"]
[WhiteTeam "Kenya"]
[BlackTeam "Maldives"]
[WhiteTeamCountry "KEN"]
[BlackTeamCountry "MDV"]
[TimeControl "40/5400+30:1800+30"]

1. e4 c6 2. d4 d5 3. e5 c5 4. c3 Nc6 5. Nf3 cxd4 6. cxd4 Bg4 7. Bb5 e6 8. a3 a6 9. Bxc6+ bxc6 10. Qa4 Qb6 11. b4 Ne7 12. Be3 Qb5 13. Nc3 Qxa4 14. Nxa4 Nf5 15. O-O Be7 16. Rfc1 a5 17. Nb6 Ra7 18. bxa5 Rxa5 19. Rxc6 O-O 20. a4 Nxe3 21. fxe3 Ra6 22. Nc8 Rxc8 23. Rxc8+ Bf8 24. Rb1 1-0

[Event "45th FIDE Womens Olympiad 2024"]
[Site "Budapest"]
[Date "2024.09.13"]
[Round "3.11"]
[White "Batsiashvili, Nino"]
[Black "Voicu-Jagodzinsky, Carmen"]
[Result "1-0"]
[ECO "A67"]
[WhiteElo "2461"]
[BlackElo "2271"]
[Annotator "RC"]
[PlyCount "97"]
[EventDate "2024.09.05"]
[EventType "team-tourn"]
[EventCountry "HUN"]
[SourceTitle "playchess.com"]
[Source "ChessBase"]
[SourceQuality "1"]
[WhiteTeam "Georgia"]
[BlackTeam "Romania"]
[WhiteTeamCountry "GEO"]
[BlackTeamCountry "ROU"]
[TimeControl "40/5400+30:1800+30"]

1. d4 {[%emt 0:00:03]} Nf6 {[%emt 0:00:14]} 2. c4 {[%emt 0:00:05]} c5 {[%emt 0:00:13]} 3. d5 {[%emt 0:00:11]} e6 {[%emt 0:00:06]} 4. Nc3 {[%emt 0:00:04]} exd5 {[%emt 0:00:06]} 5. cxd5 {[%emt 0:00:11]} d6 {[%emt 0:00:06]} 6. e4 {[%emt 0:00:36]} g6 {[%emt 0:00:15]} 7. f4 {[%emt 0:01:15]} Bg7 {[%emt 0:00:13]} 8. Bb5+ {[%emt 0:00:21]} Nfd7 {[%emt 0:00:15]} 9. a4 {[%emt 0:08:20]} Na6 {[%emt 0:00:32]} 10. Nf3 {[%emt 0:00:21]} Nb4 {[%emt 0:00:11]} 11. O-O {[%emt 0:00:47]} a6 {[%emt 0:00:29]} 12. Be2 {[%emt 0:00:19]} O-O {[%emt 0:08:46]} 13. Be3 {[%emt 0:00:34]} Nf6 {[%emt 0:03:45]} 14. Nd2 {[%emt 0:05:06]} Re8 {[%emt 0:03:37]} 15. Bf2 {[%emt 0:00:42]} Nd7 {[%emt 0:04:36]} 16. Kh1 {[%emt 0:09:57]} Bd4 {[%emt 0:07:31]} 17. Nc4 {[%emt 0:12:32]} Bxf2 {[%emt 0:11:33]} 18. Rxf2 {[%emt 0:00:05]} Nb6 {[%emt 0:00:48]} 19. Nxb6 {[%emt 0:12:58]} Qxb6 {[%emt 0:00:07]} 20. Bc4 {[%emt 0:04:45]} Qd8 {[%emt 0:02:01]} 21. Qf3 {[%emt 0:04:10]} b6 {[%emt 0:02:19]} 22. e5 {[%emt 0:04:51]} Ra7 {[%emt 0:07:29]} 23. Re1 {[%emt 0:03:44]} Bf5 {[%emt 0:03:27]} 24. g4 {[%emt 0:07:23]} Bc2 {[%emt 0:03:07]} 25. b3 {[%emt 0:02:26]} Qh4 {[%emt 0:20:44]} 26. Rfe2 {[%emt 0:01:27]} h5 {[%emt 0:01:41]} 27. gxh5 {[%emt 0:00:34]} Bf5 {[%emt 0:02:08]} 28. hxg6 {[%emt 0:01:16]} fxg6 {[%emt 0:00:05]} 29. Qg3 {[%emt 0:01:53]} Qxg3 {[%emt 0:02:06]} 30. hxg3 {[%emt 0:00:02]} Rh7+ {[%emt 0:02:41]} 31. Rh2 {[%emt 0:00:19]} Nc2 {[%emt 0:02:53]} 32. Rxh7 {[%emt 0:00:21]} Kxh7 {[%emt 0:01:10]} 33. Re2 {[%emt 0:00:26]} Kg7 {[%emt 0:00:45]} 34. exd6 {[%emt 0:00:42]} Ne3 {[%emt 0:00:56]} 35. Kg1 {[%emt 0:00:46]} Bg4 {[%emt 0:03:27]} 36. Re1 {[%emt 0:00:27]} Bd7 {[%emt 0:02:32]} 37. Bxa6 {[%emt 0:00:29]} Kf7 {[%emt 0:02:36]} 38. Bb5 {[%emt 0:02:14]} Bxb5 {[%emt 0:00:49]} 39. Nxb5 {[%emt 0:00:07]} Nxd5 {[%emt 0:00:25]} 40. Rxe8 {[%emt 0:00:25]} Kxe8 {[%emt 0:00:03]} 41. Nc7+ {[%emt 0:30:43]} Nxc7 {[%emt 0:30:06]} 42. dxc7 {[%emt 0:00:03]} Kd7 {[%emt 0:00:04]} 43. Kf2 {[%emt 0:00:04]} Kxc7 {[%emt 0:00:07]} 44. Ke3 {[%emt 0:00:05]} Kd6 {[%emt 0:00:06]} 45. Ke4 {[%emt 0:00:08]} Ke6 {[%emt 0:00:16]} 46. g4 {[%emt 0:00:06]} Kd6 {[%emt 0:00:24]} 47. f5 {[%emt 0:00:35]} g5 {[%emt 0:00:39]} 48. Kd3 {[%emt 0:01:14]} Kd5 {[%emt 0:00:12]} 49. Kc3 {[%emt 0:00:05]} 1-0

[Event "45th FIDE Womens Olympiad 2024"]
[Site "Budapest"]
[Date "2024.09.13"]
[Round "3.11"]
[White "Aini Munthazim"]
[Black "Mutisya, Jully"]
[Result "0-1"]
[ECO "B07"]
[WhiteElo "1536"]
[BlackElo "1750"]
[Annotator "NA"]
[PlyCount "44"]
[EventDate "2024.09.05"]
[EventType "team-tourn"]
[EventCountry "HUN"]
[SourceTitle "playchess.com"]
[Source "ChessBase"]
[SourceQuality "1"]
[WhiteTeam "Maldives"]
[BlackTeam "Kenya"]
[WhiteTeamCountry "MDV"]
[BlackTeamCountry "KEN"]
[TimeControl "40/5400+30:1800+30"]

1. e4 d6 2. d4 Nf6 3. Nc3 g6 4. Be3 c6 5. h3 Nbd7 6. f4 Qa5 7. Qd2 e5 8. O-O-O Bg7 9. Nf3 O-O 10. g4 exd4 11. Bxd4 b5 12. Bxf6 Nxf6 13. Qxd6 b4 14. Ne2 Nxe4 15. Qxc6 Bxb2+ 16. Kxb2 Qa3+ 17. Kb1 Nc3+ 18. Nxc3 bxc3 19. Qb5 Be6 20. Rd7 Bxa2+ 21. Ka1 Bb3+ 22. Kb1 Qb2# 0-1

[Event "45th FIDE Womens Olympiad 2024"]
[Site "Budapest"]
[Date "2024.09.13"]
[Round "3.12"]
[White "Ciolacu, Alessia-Mihaela"]
[Black "Khotenashvili, Bella"]
[Result "1-0"]
[ECO "D35"]
[WhiteElo "2160"]
[BlackElo "2432"]
[Annotator "RC"]
[PlyCount "71"]
[EventDate "2024.09.05"]
[EventType "team-tourn"]
[EventCountry "HUN"]
[SourceTitle "playchess.com"]
[Source "ChessBase"]
[SourceQuality "1"]
[WhiteTeam "Romania"]
[BlackTeam "Georgia"]
[WhiteTeamCountry "ROU"]
[BlackTeamCountry "GEO"]
[TimeControl "40/5400+30:1800+30"]

1. d4 {[%emt 0:00:05]} Nf6 {[%emt 0:00:13]} 2. c4 {[%emt 0:00:14]} e6 {[%emt 0:00:05]} 3. Nc3 {[%emt 0:01:23]} d5 {[%emt 0:00:07]} 4. cxd5 {[%emt 0:02:51]} exd5 {[%emt 0:00:06]} 5. Bg5 {[%emt 0:00:10]} Bb4 {[%emt 0:00:08]} 6. e3 {[%emt 0:07:28]} h6 {[%emt 0:00:17]} 7. Bxf6 {[%emt 0:00:29]} Qxf6 {[%emt 0:00:06]} 8. Qb3 {[%emt 0:00:08]} Qd6 {[%emt 0:00:16]} 9. a3 {[%emt 0:01:29]} Bxc3+ {[%emt 0:00:21]} 10. Qxc3 {[%emt 0:01:19]} Bf5 {[%emt 0:00:55]} 11. Rc1 {[%emt 0:02:31]} c6 {[%emt 0:07:27]} 12. Nf3 {[%emt 0:08:40]} Nd7 {[%emt 0:01:23]} 13. Bd3 {[%emt 0:15:36]} Bxd3 {[%emt 0:07:29]} 14. Qxd3 {[%emt 0:00:06]} a5 {[%emt 0:04:51]} 15. O-O {[%emt 0:02:17]} O-O {[%emt 0:00:52]} 16. Rfe1 {[%emt 0:13:04]} Rfe8 {[%emt 0:04:23]} 17. Nh4 {[%emt 0:06:19]} a4 {[%emt 0:25:56]} 18. Nf5 {[%emt 0:01:06]} Qe6 {[%emt 0:00:11]} 19. Re2 {[%emt 0:04:31]} Nf6 {[%emt 0:03:24]} 20. Ng3 {[%emt 0:04:15]} h5 {[%emt 0:03:35]} 21. Rce1 {[%emt 0:02:35]} h4 {[%emt 0:04:17]} 22. Nf5 {[%emt 0:02:56]} h3 {[%emt 0:01:31]} 23. f3 {[%emt 0:02:15]} g6 {[%emt 0:02:26]} 24. Ng3 {[%emt 0:01:07]} hxg2 {[%emt 0:05:25]} 25. Rxg2 {[%emt 0:00:59]} Qh3 {[%emt 0:07:38]} 26. e4 {[%emt 0:01:49]} dxe4 {[%emt 0:09:12]} 27. fxe4 {[%emt 0:00:06]} Rad8 {[%emt 0:00:59]} 28. Qf3 {[%emt 0:03:24]} Nh7 {[%emt 0:01:48]} 29. Rf1 {[%emt 0:01:21]} Rf8 {[%emt 0:04:31]} 30. Qf4 {[%emt 0:06:09]} Kh8 {[%emt 0:03:45]} 31. Rf3 {[%emt 0:05:24]} Qd7 {[%emt 0:00:23]} 32. Ne2 {[%emt 0:00:32]} Qe6 {[%emt 0:01:27]} 33. Qh6 {[%emt 0:01:37]} g5 {[%emt 0:00:24]} 34. Qh5 {[%emt 0:01:23]} Qxe4 {[%emt 0:00:38]} 35. Rxg5 {[%emt 0:00:24]} Qxe2 {[%emt 0:00:51]} 36. Qxh7+ {[%emt 0:00:11]} 1-0

[Event "45th FIDE Womens Olympiad 2024"]
[Site "Budapest"]
[Date "2024.09.13"]
[Round "3.12"]
[White "Karanja, Ether"]
[Black "Fathmath Zoya Hassan Saeed"]
[Result "1-0"]
[ECO "D00"]
[WhiteElo "1637"]
[BlackElo "1406"]
[Annotator "NA"]
[PlyCount "71"]
[EventDate "2024.09.05"]
[EventType "team-tourn"]
[EventCountry "HUN"]
[SourceTitle "playchess.com"]
[Source "ChessBase"]
[SourceQuality "1"]
[WhiteTeam "Kenya"]
[BlackTeam "Maldives"]
[WhiteTeamCountry "KEN"]
[BlackTeamCountry "MDV"]
[TimeControl "40/5400+30:1800+30"]

1. d4 d5 2. Bf4 c5 3. e3 Nc6 4. c3 Bf5 5. Nd2 e6 6. Ngf3 Qb6 7. b3 h6 8. Be2 Nf6 9. Ne5 Nxe5 10. dxe5 Nd7 11. c4 g5 12. Bg3 Bg7 13. f4 gxf4 14. exf4 f6 15. Bh5+ Kf8 16. cxd5 exd5 17. Nf3 Qb4+ 18. Kf2 fxe5 19. Qxd5 Ke7 20. Qf7+ Kd6 21. Rhd1+ Kc6 22. Qxf5 Nf6 23. Nxe5+ Kb5 24. Be2+ Kb6 25. Qe6+ Ka5 26. Nc4+ Kb5 27. Nb6+ Ka5 28. Nxa8 Ne4+ 29. Kf1 Bxa1 30. Rxa1 Nd2+ 31. Kf2 Qd4+ 32. Ke1 Qxa1+ 33. Kxd2 Qxa2+ 34. Ke3 Qb2 35. Be1+ Qc3+ 36. Bxc3# 1-0